bitfinex/quotes_BTCUSD_20250513
["timestamp","ask_amount","ask_price","bid_price","bid_amount"]
[1747164837793,0.02141382,104740.0,104730.0,1.24475247]
[1747164838199,0.0118671,104740.0,104730.0,1.24475247]
[1747164838636,0.04050744,104740.0,104730.0,1.24475247]
[1747164839011,0.03096045,104740.0,104730.0,1.24475247]
[1747164839209,0.02141373,104740.0,104730.0,1.24475247]
[1747164840263,0.03096054,104740.0,104730.0,1.24475247]
[1747164841140,0.02141373,104740.0,104730.0,1.24475247]
[1747164841533,0.0118671,104740.0,104730.0,0.85317113]
[1747164841737,0.0309609,104740.0,104730.0,1.24475247]
[1747164841943,0.02141391,104740.0,104730.0,1.21695247]
[1747164842150,0.04811391,104740.0,104730.0,0.72775791]
[1747164842361,0.06720825,104740.0,104730.0,0.76594988]
[1747164842566,0.04811391,104740.0,104730.0,0.76594988]
[1747164842781,0.0118671,104740.0,104730.0,1.09136757]
[1747164843373,0.0118671,104740.0,104730.0,1.21891193]
[1747164843601,0.0118671,104740.0,104730.0,1.66735193]
[1747164843923,0.05766072,104740.0,104730.0,1.64185193]
[1747164844128,0.04811373,104740.0,104730.0,1.64185193]
[1747164844331,0.0385671,104740.0,104730.0,1.64185193]
[1747164844870,0.0385671,104740.0,104730.0,1.66865193]
[1747164844871,0.0118671,104740.0,104730.0,1.66865193]
[1747164845920,0.0118671,104740.0,104730.0,1.43085193]
[1747164846124,0.02141391,104740.0,104730.0,1.43085193]
[1747164846556,0.06830807,104740.0,104730.0,1.40401193]
[1747164846755,0.06830816,104740.0,104730.0,1.40401193]
[1747164847347,0.0118671,104740.0,104730.0,1.43161193]
[1747164847700,0.02141373,104740.0,104730.0,1.43161193]
[1747164847903,0.03096045,104740.0,104730.0,1.43161193]
[1747164848101,0.02141373,104740.0,104730.0,1.43161193]
[1747164848301,0.03096054,104740.0,104730.0,1.43161193]
[1747164848478,0.02141373,104740.0,104730.0,1.43161193]
[1747164848893,0.0118671,104740.0,104730.0,1.43161193]
[1747164849877,0.0118671,104740.0,104730.0,1.43158347]
[1747164850753,0.01503429,104750.0,104740.0,0.61329025]
[1747164850985,0.0358,104770.0,104760.0,0.21954834]
[1747164851215,0.15224587,104770.0,104760.0,0.80622761]
[1747164851430,0.01759212,104770.0,104760.0,1.17142761]
[1747164851654,0.03668073,104770.0,104760.0,1.17142779]
[1747164851878,0.06228073,104770.0,104760.0,1.17486321]
[1747164852121,0.24363144,104770.0,104760.0,1.12713682]
[1747164852300,0.36644084,104770.0,104760.0,0.93622426]
[1747164852510,0.3568964,104770.0,104760.0,0.93622426]
[1747164852724,0.3578964,104770.0,104760.0,0.93622426]
[1747164852948,0.3578964,104770.0,104760.0,0.34]
[1747164853166,0.3578964,104770.0,104760.0,0.63811213]
[1747164854510,0.3578964,104770.0,104760.0,0.84326754]
[1747164854746,0.3578964,104770.0,104760.0,0.35424285]
[1747164854960,0.3578964,104770.0,104760.0,0.65235498]
[1747164855411,0.3578964,104770.0,104760.0,0.84326754]
[1747164855625,0.3578964,104770.0,104760.0,0.85884618]
[1747164855799,0.3578964,104770.0,104760.0,0.85881669]
[1747164856696,0.34835178,104770.0,104760.0,0.36982149]
[1747164857315,0.34835178,104770.0,104760.0,0.66790413]
[1747164857316,0.34826406,104770.0,104760.0,0.66790413]
[1747164857769,0.34826406,104770.0,104760.0,0.36982149]
[1747164858467,0.34826406,104770.0,104760.0,0.02982149]
[1747164858887,0.23620344,104760.0,104750.0,0.49855987]
[1747164859109,0.3430581,104760.0,104750.0,0.49855987]
[1747164859331,0.3430581,104760.0,104750.0,0.51409307]
[1747164859984,0.36101284,104760.0,104750.0,0.51409307]
[1747164860969,0.36101284,104760.0,104750.0,0.50454654]
[1747164861173,0.36101284,104760.0,104750.0,0.51409307]
[1747164863139,0.36101284,104760.0,104750.0,0.50454654]
[1747164863340,0.33351284,104760.0,104750.0,0.5287439]
[1747164863567,0.33351284,104760.0,104750.0,0.51919737]
[1747164863790,0.33351284,104760.0,104750.0,0.5287439]
[1747164864241,0.36101284,104760.0,104750.0,0.5287439]
[1747164864594,0.36101284,104760.0,104750.0,0.53829034]
[1747164865028,0.36101284,104760.0,104750.0,0.51919737]
[1747164865233,0.36101284,104760.0,104750.0,0.41677549]
[1747164865443,0.36101284,104760.0,104750.0,0.22111473]
[1747164865645,0.36101284,104760.0,104750.0,0.03018403]
[1747164865846,0.22667722,104750.0,104740.0,0.72660868]
[1747164866238,0.24577001,104750.0,104740.0,0.72660868]
[1747164866455,0.26362375,104750.0,104740.0,0.53094901]
[1747164866915,0.26362375,104750.0,104740.0,0.34]
[1747164867139,0.36093315,104750.0,104740.0,0.01532168]
[1747164867381,0.36093315,104750.0,104740.0,0.01732168]
[1747164867597,0.36093315,104750.0,104740.0,0.002]
[1747164867819,0.36093315,104750.0,104740.0,0.004]
[1747164868038,0.36093315,104750.0,104740.0,0.30227149]
[1747164868849,0.36093315,104750.0,104740.0,0.004]
[1747164869052,0.36093315,104750.0,104740.0,0.30227149]
[1747164869923,0.36093315,104750.0,104740.0,0.004]
[1747164870836,0.36093315,104750.0,104740.0,0.01961054]
[1747164871369,0.36763158,104750.0,104740.0,0.01961054]
[1747164871771,0.36763158,104750.0,104740.0,0.31788203]
[1747164872431,0.36093315,104750.0,104740.0,0.31788203]
[1747164877092,0.36093315,104750.0,104740.0,0.01961054]
[1747164877273,0.36762795,104750.0,104740.0,0.01961054]
[1747164880139,0.6188888,104750.0,104740.0,0.01961054]
[1747164883008,0.8558488,104750.0,104740.0,0.01961054]
[1747164883898,0.8558488,104750.0,104740.0,0.004]
[1747164884080,0.9531582,104750.0,104740.0,0.004]
[1747164884296,0.6191288,104750.0,104740.0,0.004]
[1747164884733,0.8557288,104750.0,104740.0,0.004]
[1747164884949,0.8557288,104750.0,104740.0,0.002]
[1747164885523,0.8557288,104750.0,104730.0,0.03959336]
[1747164885524,0.25389627,104740.0,104730.0,0.03959336]
[1747164885719,0.35120567,104740.0,104730.0,0.03959336]
[1747164886181,0.35790047,104740.0,104730.0,0.03959336]
[1747164886386,0.41985463,104740.0,104730.0,0.03959336]
[1747164886555,0.35790047,104740.0,104730.0,0.03959336]
[1747164886759,0.35790047,104740.0,104730.0,0.04159336]
[1747164886963,0.60900132,104740.0,104730.0,0.02761101]
[1747164887714,0.37244132,104740.0,104730.0,0.02961101]
[1747164887928,0.60896132,104740.0,104730.0,0.02961101]
[1747164888125,0.60896132,104740.0,104730.0,0.02761101]
[1747164888530,0.60896132,104740.0,104730.0,0.02561101]
[1747164888928,0.66795048,104740.0,104730.0,0.02561101]
[1747164889388,0.60896132,104740.0,104730.0,0.02561101]
[1747164889523,0.37244132,104740.0,104730.0,0.02561101]
[1747164889943,0.60892132,104740.0,104730.0,0.02561101]
[1747164890536,0.37244132,104740.0,104730.0,0.02561101]
[1747164890733,0.60888132,104740.0,104730.0,0.02561101]
[1747164891648,1.01352136,104740.0,104730.0,0.02561101]
[1747164892054,0.95876132,104740.0,104730.0,0.02561101]
[1747164892268,0.72236132,104740.0,104730.0,0.02561101]
[1747164892472,0.95876132,104740.0,104730.0,0.02561101]
[1747164892675,0.72236132,104740.0,104730.0,0.02561101]
[1747164892886,0.95876132,104740.0,104730.0,0.02561101]
[1747164893446,0.95876132,104740.0,104730.0,0.02661101]
[1747164893867,1.05607072,104740.0,104730.0,0.02661101]
[1747164894077,1.05807072,104740.0,104730.0,0.02761101]
[1747164894672,1.05137592,104740.0,104730.0,0.02761101]
[1747164894902,1.05805892,104740.0,104730.0,0.02761101]
[1747164895069,0.96074952,104740.0,104730.0,0.02761101]
[1747164896646,1.13686952,104740.0,104730.0,0.02761101]
[1747164896850,1.37386952,104740.0,104730.0,0.02761101]
[1747164897120,1.61014952,104740.0,104730.0,0.02761101]
[1747164897773,1.38982051,104740.0,104730.0,0.02761101]
[1747164897986,1.68277265,104740.0,104730.0,0.02761101]
[1747164898193,1.44653265,104740.0,104730.0,0.02761101]
[1747164898404,1.68277265,104740.0,104730.0,0.02761101]
[1747164898665,1.37386952,104740.0,104730.0,0.02761101]
[1747164898890,0.57112867,104740.0,104730.0,0.02761101]
[1747164899108,0.83556867,104740.0,104730.0,0.02761101]
[1747164899760,0.85010952,104740.0,104730.0,0.02761101]
[1747164900749,0.61386952,104740.0,104730.0,0.02761101]
[1747164900964,0.85002952,104740.0,104730.0,0.02761101]
[1747164903535,0.37682952,104740.0,104730.0,0.02761101]
[1747164903757,0.82082952,104740.0,104730.0,0.02761101]
[1747164905347,0.70805892,104740.0,104730.0,0.02761101]
[1747164905564,0.84674952,104740.0,104730.0,0.02761101]
[1747164905779,1.15506418,104740.0,104730.0,0.02761101]
[1747164905995,0.91906418,104740.0,104730.0,0.02761101]
[1747164906210,1.15506418,104740.0,104730.0,0.02761101]
[1747164906424,0.91906418,104740.0,104730.0,0.02761101]
[1747164906606,1.25233358,104740.0,104730.0,0.02761101]
[1747164906806,1.15502418,104740.0,104730.0,0.02761101]
[1747164907029,1.49502418,104740.0,104730.0,0.02761101]
[1747164907442,1.25906418,104740.0,104730.0,0.02761101]
[1747164907649,1.49498418,104740.0,104730.0,0.012]
[1747164907866,1.5646219,104740.0,104730.0,0.012]
[1747164908087,1.5547019,104740.0,104730.0,0.012]
[1747164908297,1.58145984,104740.0,104730.0,0.012]
[1747164908751,1.58145984,104740.0,104730.0,0.011]
[1747164908947,1.10941984,104740.0,104730.0,0.011]
[1747164909164,1.58141984,104740.0,104730.0,0.013]
[1747164909402,1.58141984,104740.0,104730.0,0.00251934]
[1747164909631,0.55505627,104730.0,104720.0,0.002]
[1747164909858,1.43420533,104730.0,104720.0,0.002]
[1747164910115,1.56233235,104730.0,104720.0,0.002]
[1747164910384,0.90757008,104720.0,104710.0,0.015]
[1747164910633,0.73324276,104720.0,104710.0,0.015]
[1747164910860,1.50363742,104720.0,104710.0,0.01548102]
[1747164911112,1.60094682,104720.0,104710.0,0.01548102]
[1747164911377,1.30923516,104720.0,104710.0,0.01548102]
[1747164911594,1.60762982,104720.0,104710.0,0.01548102]
[1747164912273,1.62458982,104720.0,104710.0,0.01648102]
[1747164912699,1.59783188,104720.0,104710.0,0.01648102]
[1747164913343,1.62455516,104720.0,104710.0,0.01648102]
[1747164913554,1.63955516,104720.0,104710.0,0.01648102]
[1747164914682,1.31443722,104720.0,104710.0,0.01648102]
[1747164914913,1.61283188,104720.0,104710.0,0.01648102]
[1747164915388,1.31443722,104720.0,104710.0,0.01648102]
[1747164915656,1.61283188,104720.0,104710.0,0.01648102]
[1747164917200,1.71728727,104720.0,104710.0,0.01648102]
[1747164917949,2.52898553,104720.0,104710.0,0.01648102]
[1747164918192,2.50123061,104720.0,104710.0,0.01648102]
[1747164918458,2.20113235,104720.0,104710.0,0.01648102]
[1747164918688,2.43677235,104720.0,104710.0,0.01648102]
[1747164919133,2.41977235,104720.0,104710.0,0.01548102]
[1747164919349,2.42877235,104720.0,104710.0,0.01548102]
[1747164919564,2.41377235,104720.0,104710.0,0.01548102]
[1747164919786,2.43277235,104720.0,104710.0,0.01548102]
[1747164920011,0.96834697,104720.0,104710.0,0.01548102]
[1747164920221,1.26674163,104720.0,104710.0,0.01548102]
[1747164920453,1.28128248,104720.0,104710.0,0.01548102]
[1747164920883,1.62128248,104720.0,104710.0,0.01548102]
[1747164921096,1.71859188,104720.0,104710.0,0.01548102]
[1747164921805,1.70867188,104720.0,104710.0,0.01548102]
[1747164922445,1.71867188,104720.0,104710.0,0.01548102]
[1747164922657,1.70867188,104720.0,104710.0,0.01548102]
[1747164925205,1.32284782,104720.0,104710.0,0.01548102]
[1747164925422,1.61124248,104720.0,104710.0,0.01548102]
[1747164926931,1.08728782,104720.0,104710.0,0.00048102]
[1747164927157,1.33272782,104720.0,104710.0,0.00048102]
[1747164928149,1.30532782,104720.0,104710.0,0.00048102]
[1747164928384,1.40263722,104720.0,104710.0,0.00048102]
[1747164928851,1.42793722,104720.0,104710.0,0.00048102]
[1747164929791,1.09518782,104720.0,104710.0,0.00048102]
[1747164930000,1.06988782,104720.0,104710.0,0.00048102]
[1747164930203,1.30520782,104720.0,104710.0,0.00048102]
[1747164930414,0.15109049,104720.0,104710.0,0.35177568]
[1747164930641,0.34207597,104720.0,104710.0,0.35177568]
[1747164930855,0.35448995,104720.0,104710.0,0.8827794]
[1747164931080,0.33539315,104720.0,104710.0,0.69177568]
[1747164931541,0.32639315,104720.0,104710.0,0.69177568]
[1747164931801,0.32639315,104720.0,104710.0,0.8827794]
[1747164932006,0.31039315,104720.0,104710.0,0.7058424]
[1747164932287,0.32639315,104720.0,104710.0,0.7058424]
[1747164932703,0.31039315,104720.0,104710.0,0.7058424]
[1747164933077,0.30939315,104720.0,104710.0,0.89884612]
[1747164933281,0.30939315,104720.0,104710.0,0.7078424]
[1747164933491,0.31139315,104720.0,104710.0,0.7078424]
[1747164933707,0.31139315,104720.0,104710.0,0.90839621]
[1747164933708,0.004,104720.0,104710.0,0.90839621]
[1747164933914,0.22363229,104720.0,104710.0,0.89884612]
[1747164934796,0.21408357,104720.0,104710.0,0.89884612]
[1747164935423,0.21408357,104720.0,104710.0,1.36916612]
[1747164936535,0.21408357,104720.0,104710.0,0.55884612]
[1747164936741,0.21408357,104720.0,104710.0,1.02912612]
[1747164940124,0.21408357,104720.0,104710.0,1.0386763]
[1747164940353,0.21408357,104720.0,104710.0,1.02912612]
[1747164940555,0.21408357,104720.0,104710.0,1.0385163]
[1747164940786,0.21408357,104720.0,104710.0,1.02896612]
[1747164941676,0.004,104720.0,104710.0,1.39761575]
[1747164941897,0.004,104720.0,104710.0,1.70556023]
[1747164942174,0.002,104750.0,104720.0,0.34]
[1747164942384,0.12794746,104750.0,104740.0,0.88304367]
[1747164942591,0.3284254,104750.0,104740.0,1.35308367]
[1747164942803,0.31887941,104750.0,104740.0,1.35308367]
[1747164943230,0.30933315,104750.0,104740.0,1.35308367]
[1747164943671,0.31133315,104750.0,104740.0,1.35308367]
[1747164943888,0.31133315,104750.0,104740.0,1.16213466]
[1747164944104,0.31133315,104750.0,104740.0,1.35308367]
[1747164944545,0.31233315,104750.0,104740.0,1.36008367]
[1747164945397,0.31233315,104750.0,104740.0,1.06168901]
[1747164945828,0.31233315,104750.0,104740.0,1.07628508]
[1747164946924,0.31233315,104750.0,104740.0,0.84140508]
[1747164947157,0.31233315,104750.0,104740.0,1.07608508]
[1747164949147,0.31233315,104750.0,104740.0,0.88497607]
[1747164949366,0.31233315,104750.0,104740.0,1.07592508]
[1747164949583,0.30278671,104750.0,104740.0,0.04909607]
[1747164949798,0.30278671,104750.0,104740.0,0.02159607]
[1747164949799,0.60118137,104750.0,104740.0,0.02159607]
[1747164950011,0.30278671,104750.0,104740.0,0.02159607]
[1747164950223,0.32858671,104750.0,104740.0,0.02159607]
[1747164950903,0.64152222,104750.0,104740.0,0.02159607]
[1747164951093,0.75827872,104750.0,104740.0,0.007]
[1747164951951,1.07324905,104750.0,104740.0,0.007]
[1747164952177,1.41324905,104750.0,104740.0,0.007]
[1747164952613,1.11485439,104750.0,104740.0,0.007]
[1747164952834,1.02189789,104750.0,104740.0,0.007]
[1747164953250,1.03689789,104750.0,104740.0,0.008]
[1747164953913,1.03589789,104750.0,104740.0,0.001]
[1747164954131,1.06389789,104750.0,104740.0,0.002]
[1747164957733,1.36229255,104750.0,104740.0,0.002]
[1747164958037,1.06389789,104750.0,104740.0,0.002]
[1747164960108,1.13942872,104750.0,104740.0,0.002]
[1747164960413,1.42790338,104750.0,104740.0,0.002]
[1747164960638,0.54851889,104720.0,104710.0,0.00048102]
[1747164960859,0.90844829,104720.0,104710.0,0.00048102]
[1747164961320,0.91510396,104720.0,104710.0,0.00048102]
[1747164961967,0.91610396,104720.0,104710.0,0.00948102]
[1747164962183,0.5902093,104720.0,104710.0,0.01548102]
[1747164962398,0.88960396,104720.0,104710.0,0.01548102]
[1747164963296,0.86410396,104720.0,104710.0,0.01548102]
[1747164964534,0.5657093,104720.0,104710.0,0.04168102]
[1747164964743,0.31604845,104720.0,104710.0,0.06658102]
[1747164965219,0.30939278,104720.0,104710.0,0.06658102]
[1747164966519,0.30939278,104720.0,104710.0,0.04168102]
[1747164966752,0.30939278,104720.0,104710.0,0.06898102]
[1747164967818,0.60778744,104720.0,104710.0,0.04168102]
[1747164969108,0.02865173,104700.0,104690.0,0.43451664]
[1747164969317,0.02865164,104700.0,104690.0,0.44406837]
[1747164969531,0.02865164,104700.0,104690.0,0.43451664]
[1747164969737,0.02865164,104700.0,104690.0,0.44406837]
[1747164969943,0.02865164,104700.0,104690.0,0.43451664]
[1747164970121,0.03820264,104700.0,104690.0,0.43451664]
[1747164970320,0.2292246,104700.0,104690.0,0.41541291]
[1747164970532,0.22922542,104700.0,104690.0,0.42496492]
[1747164970732,0.22922542,104700.0,104690.0,0.41541291]
[1747164971058,0.23022542,104700.0,104690.0,0.42041291]
[1747164971201,0.23022542,104700.0,104690.0,0.42996492]
[1747164971408,0.23022542,104700.0,104690.0,0.43951674]
[1747164971655,0.23022542,104700.0,104690.0,0.44365448]
[1747164972008,0.20357305,104700.0,104690.0,0.35868956]
[1747164972224,0.20357305,104700.0,104690.0,0.60072977]
[1747164972451,0.20357305,104700.0,104690.0,0.40968956]
[1747164972675,0.20357305,104700.0,104690.0,0.60072977]
[1747164973022,0.20357305,104700.0,104690.0,0.40968956]
[1747164973123,0.19402196,104700.0,104690.0,0.40968956]
[1747164973584,0.19402196,104700.0,104690.0,0.60072977]
[1747164974275,0.19402196,104700.0,104690.0,0.38408956]
[1747164974529,0.19402196,104700.0,104690.0,0.40948956]
[1747164975447,0.22267478,104700.0,104690.0,0.61008168]
[1747164975915,0.20357305,104700.0,104690.0,0.40948956]
[1747164978334,0.003,104700.0,104690.0,0.60052977]
[1747164978567,0.003,104700.0,104690.0,0.92757935]
[1747164979244,0.01255027,104700.0,104690.0,0.92757935]
[1747164980092,0.02210063,104700.0,104690.0,0.92757935]
[1747164980317,0.03165118,104700.0,104690.0,0.62918469]
[1747164980563,0.04120172,104700.0,104690.0,0.62918469]
[1747164980780,0.04120273,104700.0,104690.0,0.86274523]
[1747164981010,0.2131236,104700.0,104690.0,1.06824977]
[1747164981700,0.2131236,104700.0,104690.0,1.07780178]
[1747164981904,0.2131236,104700.0,104690.0,1.08735369]
[1747164982115,0.21312396,104700.0,104690.0,1.06824977]
[1747164982352,0.03165255,104700.0,104690.0,1.06830977]
[1747164982570,0.29839466,104720.0,104690.0,1.0874135]
[1747164982781,0.19100507,104710.0,104700.0,0.0277]
[1747164984451,0.58909676,104710.0,104700.0,0.002]
[1747164984675,0.28931447,104710.0,104700.0,0.007]
[1747164984905,0.58770913,104710.0,104700.0,0.007]
[1747164985132,0.60224998,104710.0,104700.0,0.007]
[1747164985626,0.60224998,104710.0,104700.0,0.008]
[1747164985627,0.60424998,104710.0,104700.0,0.008]
[1747164985861,0.65584998,104710.0,104700.0,0.008]
[1747164987235,0.35745532,104710.0,104700.0,0.008]
[1747164987435,0.33165532,104710.0,104700.0,0.008]
[1747164987626,0.33065532,104710.0,104700.0,0.003]
[1747164987827,0.62904998,104710.0,104700.0,0.003]
[1747164988294,0.62804998,104710.0,104700.0,0.007]
[1747164988484,0.33065532,104710.0,104700.0,0.008]
[1747164988859,0.62904998,104710.0,104700.0,0.008]
[1747164990318,0.29986266,104710.0,104700.0,0.25172196]
[1747164990545,0.32851238,104710.0,104700.0,0.25172196]
[1747164990772,0.31896284,104710.0,104700.0,0.25172196]
[1747164991168,0.31896284,104710.0,104700.0,0.22442196]
[1747164992249,0.30941321,104710.0,104700.0,0.22442196]
[1747164993532,0.30941321,104710.0,104700.0,0.25092196]
[1747164993774,0.30941321,104710.0,104700.0,0.22442196]
[1747164995136,0.29031312,104710.0,104700.0,0.008]
[1747164997435,0.29031312,104710.0,104700.0,0.0331]
[1747164997851,0.29031312,104710.0,104700.0,0.22412196]
[1747164999384,0.29031312,104710.0,104700.0,0.0331]
[1747164999813,0.29031312,104710.0,104700.0,0.22412196]
[1747165000232,0.002,104710.0,104700.0,0.24902196]
[1747165000450,0.002,104710.0,104700.0,0.9160688]
[1747165000660,0.002,104710.0,104700.0,0.61767414]
[1747165001307,0.00670203,104720.0,104710.0,0.61105317]
[1747165001532,0.01625057,104720.0,104710.0,0.61105335]
[1747165001738,0.02579956,104720.0,104710.0,0.61105354]
[1747165001960,0.01909753,104720.0,104710.0,0.61105354]
[1747165002171,0.01909753,104720.0,104710.0,0.61572062]
[1747165002590,0.02109753,104720.0,104710.0,0.61672062]
[1747165002796,0.03064662,104720.0,104710.0,0.61672071]
[1747165002999,0.02109753,104720.0,104710.0,0.62627062]
[1747165003276,0.02109753,104720.0,104710.0,0.61672071]
[1747165003561,0.01254863,104720.0,104710.0,0.64282025]
[1747165003966,0.02209735,104720.0,104710.0,0.64282025]
[1747165004181,0.003,104720.0,104710.0,0.87590035]
[1747165004384,0.003,104720.0,104710.0,1.18384455]
[1747165007015,0.003,104720.0,104710.0,1.28115395]
[1747165007252,0.00870203,104750.0,104740.0,0.55959025]
[1747165007444,0.002,104750.0,104740.0,0.61139025]
[1747165007649,0.0115459,104750.0,104740.0,0.84447034]
[1747165008024,0.0115459,104750.0,104740.0,0.82537636]
[1747165008227,0.0115459,104750.0,104740.0,0.83492344]
[1747165008643,0.02209198,104750.0,104740.0,0.85347043]
[1747165009093,0.02209198,104750.0,104740.0,0.85347061]
[1747165009311,0.03209198,104750.0,104740.0,0.8640176]
[1747165009519,0.0225459,104750.0,104740.0,0.86401751]
[1747165009676,0.02209198,104750.0,104740.0,0.85347061]
[1747165009885,0.02209198,104750.0,104740.0,0.8630176]
[1747165010087,0.02209198,104750.0,104740.0,0.85747061]
[1747165010293,0.02209198,104750.0,104740.0,0.8670176]
[1747165010690,0.03163833,104750.0,104740.0,0.81287646]
[1747165010913,0.03163833,104750.0,104740.0,1.04535646]
[1747165011163,0.21302366,104750.0,104740.0,0.77642901]
[1747165011947,0.21302366,104750.0,104740.0,0.77638901]
[1747165013292,0.21302366,104750.0,104740.0,0.013]
[1747165013505,0.52737197,104750.0,104740.0,0.20394901]
[1747165013962,0.22897731,104750.0,104740.0,0.20394901]
[1747165014190,0.22897731,104750.0,104740.0,0.21349646]
[1747165014386,0.21302357,104750.0,104740.0,0.20394901]
[1747165019371,0.20347731,104750.0,104740.0,0.20394901]
[1747165020016,0.19393078,104750.0,104740.0,0.20394901]
[1747165021042,0.20347722,104750.0,104740.0,0.20394901]
[1747165022887,0.20347722,104750.0,104740.0,0.013]
[1747165023353,0.20347722,104750.0,104740.0,0.20394901]
[1747165024025,0.23137722,104750.0,104740.0,0.013]
[1747165024235,0.23137722,104750.0,104740.0,0.20394901]
[1747165024451,0.20347722,104750.0,104740.0,0.21349646]
[1747165024661,0.20347722,104750.0,104740.0,0.013]
[1747165024869,0.20347722,104750.0,104740.0,0.20394901]
[1747165025918,0.02209207,104750.0,104740.0,0.21349636]
[1747165026121,0.04118468,104750.0,104740.0,0.26769636]
[1747165026347,0.23211546,104750.0,104740.0,0.25814901]
[1747165026560,0.22256956,104750.0,104740.0,0.25814901]
[1747165026790,0.21302357,104750.0,104740.0,0.22964901]
[1747165028623,0.21302357,104750.0,104740.0,0.22970901]
[1747165029252,0.04118431,104750.0,104740.0,0.27670363]
[1747165029457,0.03163787,104750.0,104740.0,0.28625089]
[1747165029702,0.00668005,104760.0,104740.0,0.90555048]
[1747165029842,0.0097831,104780.0,104770.0,0.61192737]
[1747165030067,0.0097831,104780.0,104770.0,0.84392737]
[1747165030471,0.0097831,104780.0,104770.0,1.14232203]
[1747165030655,0.0113861,104790.0,104780.0,0.21950643]
[1747165030868,0.03047051,104790.0,104780.0,0.82707267]
[1747165031096,0.01153029,104790.0,104780.0,0.01401635]
[1747165031340,0.01908623,104780.0,104770.0,0.54443874]
[1747165031573,0.02862958,104780.0,104770.0,0.54043865]
[1747165031814,0.00261719,104790.0,104780.0,0.57105005]
[1747165032068,0.00261719,104790.0,104780.0,0.86005005]
[1747165032273,0.00261719,104790.0,104780.0,0.62805005]
[1747165032480,0.00261719,104790.0,104780.0,1.08226689]
[1747165032685,0.00261719,104790.0,104780.0,1.07765026]
[1747165032951,0.00261719,104790.0,104780.0,0.61389035]
[1747165033139,0.00261719,104790.0,104780.0,0.85519351]
[1747165033409,0.00261719,104790.0,104780.0,0.8361071]
[1747165033611,0.2316452,104790.0,104780.0,0.80266909]
[1747165033919,0.03124422,104790.0,104780.0,0.80266909]
[1747165034325,0.0217016,104790.0,104780.0,0.57094909]
[1747165034531,0.01215926,104790.0,104780.0,0.58049289]
[1747165034719,0.00261719,104790.0,104780.0,0.59003642]
[1747165035035,0.01215935,104790.0,104780.0,0.59957986]
[1747165035374,0.01215935,104790.0,104780.0,0.58049289]
[1747165035786,0.01215935,104790.0,104780.0,0.59957995]
[1747165036380,0.01215935,104790.0,104780.0,0.59958004]
[1747165036858,0.00261719,104790.0,104780.0,0.60912348]
[1747165037065,0.01215926,104790.0,104780.0,0.60912348]
[1747165037345,0.02170142,104790.0,104780.0,0.59958004]
[1747165037555,0.02170142,104790.0,104780.0,0.60912348]
[1747165037777,0.03124367,104790.0,104780.0,0.58049289]
[1747165037992,0.03124367,104790.0,104780.0,0.57094909]
[1747165038197,0.05032863,104790.0,104780.0,0.57094909]
[1747165038410,0.03124367,104790.0,104780.0,0.58049289]
[1747165038613,0.04078675,104790.0,104780.0,0.57094909]
[1747165038818,0.04078675,104790.0,104780.0,0.02573276]
[1747165038819,0.96434469,104790.0,104780.0,0.02573276]
[1747165039032,0.6635643,104790.0,104780.0,0.02573276]
[1747165039459,0.97649981,104790.0,104780.0,0.002]
[1747165039677,0.67810515,104790.0,104780.0,0.002]
[1747165041266,0.97649981,104790.0,104780.0,0.002]
[1747165041527,1.53716921,104790.0,104780.0,0.002]
[1747165041730,1.43985981,104790.0,104780.0,0.002]
[1747165042608,1.45585981,104790.0,104780.0,0.004]
[1747165043059,1.45585981,104790.0,104780.0,0.002]
[1747165043321,1.46185981,104790.0,104780.0,0.004]
[1747165044049,0.86507049,104790.0,104780.0,0.004]
[1747165044248,1.16346515,104790.0,104780.0,0.004]
[1747165044469,0.99849981,104790.0,104780.0,0.004]
[1747165044695,0.93202515,104790.0,104780.0,0.004]
[1747165044927,0.34641049,104790.0,104780.0,0.004]
[1747165045139,0.33186964,104790.0,104780.0,0.004]
[1747165045357,0.3223272,104790.0,104780.0,0.004]
[1747165045568,0.62072186,104790.0,104780.0,0.004]
[1747165047464,0.64842186,104790.0,104780.0,0.004]
[1747165049113,0.62958968,104790.0,104780.0,0.004]
[1747165049965,0.33119502,104790.0,104780.0,0.004]
[1747165050165,0.62958968,104790.0,104780.0,0.004]
[1747165053381,0.33119502,104790.0,104780.0,0.004]
[1747165059185,0.62958968,104790.0,104780.0,0.004]
[1747165059637,0.62952968,104790.0,104780.0,0.004]
[1747165060134,0.33113502,104790.0,104780.0,0.004]
[1747165060848,0.62952968,104790.0,104780.0,0.004]
[1747165061104,0.33113502,104790.0,104780.0,0.004]
[1747165061388,0.62952968,104790.0,104780.0,0.004]
[1747165061872,0.65582968,104790.0,104780.0,0.004]
[1747165062288,0.67037053,104790.0,104780.0,0.004]
[1747165062695,0.96876519,104790.0,104780.0,0.004]
[1747165062911,1.53980519,104790.0,104780.0,0.004]
[1747165063115,0.90141053,104790.0,104780.0,0.004]
[1747165066032,0.37197587,104790.0,104780.0,0.004]
[1747165066253,0.34567587,104790.0,104780.0,0.004]
[1747165069623,0.34833722,104790.0,104780.0,0.19487612]
[1747165069842,0.14793698,104790.0,104780.0,0.22257612]
[1747165070061,0.33879488,104790.0,104780.0,0.22257612]
[1747165070490,0.14793698,104790.0,104780.0,0.22257612]
[1747165070720,0.34833777,104790.0,104780.0,0.22257612]
[1747165070935,0.33879543,104790.0,104780.0,0.22257612]
[1747165071541,0.3292529,104790.0,104780.0,0.22257612]
[1747165072324,0.04108441,104790.0,104780.0,0.23211992]
[1747165072512,0.05062703,104790.0,104780.0,0.23211992]
[1747165072737,0.05062694,104790.0,104780.0,0.26856363]
[1747165072964,0.05062694,104790.0,104780.0,0.24947612]
[1747165073161,0.04108432,104790.0,104780.0,0.25901983]
[1747165073364,0.05062685,104790.0,104780.0,0.24947612]
[1747165073596,0.05062685,104790.0,104780.0,0.25901992]
[1747165073835,0.05062685,104790.0,104780.0,0.24947612]
[1747165073836,0.06016956,104790.0,104780.0,0.24947612]
[1747165074570,0.05062685,104790.0,104780.0,0.24947612]
[1747165074792,0.06016956,104790.0,104780.0,0.25901992]
[1747165075022,0.06016956,104790.0,104780.0,0.24947612]
[1747165075225,0.06016956,104790.0,104780.0,0.22257612]
[1747165075437,0.26057035,104790.0,104780.0,0.22257612]
[1747165075657,0.03817029,104790.0,104780.0,0.21857612]
[1747165075885,0.04771318,104790.0,104780.0,0.21957612]
[1747165076116,0.0476284,104790.0,104780.0,0.22057612]
[1747165076586,0.0476284,104790.0,104780.0,0.19287612]
[1747165076587,0.2384863,104790.0,104780.0,0.19287612]
[1747165077037,0.22894359,104790.0,104780.0,0.19287612]
[1747165077528,0.03808533,104790.0,104780.0,0.22147612]
[1747165078682,0.23848612,104790.0,104780.0,0.22147612]
[1747165078915,0.23848612,104790.0,104780.0,0.19087612]
[1747165079364,0.23848612,104790.0,104780.0,0.19077612]
[1747165079596,0.03808533,104790.0,104780.0,0.19077612]